[Event "Late-Titled-Tuesday-Blitz-January-23-2024"]
[Site "Chess.com"]
[Date "2024.01.23"]
[Round "11"]
[White "alexrustemov"]
[Black "TanitoluwaAps116"]
[Result "1/2-1/2"]
[WhiteElo "2830"]
[BlackElo "2718"]
[TimeControl "180+1"]
[EndTime "16:03:46 PST"]
[Termination "Game drawn - insufficient material"]

1. d4 {[%clk 0:03:00.9]} 1... Nf6 {[%clk 0:02:58]} 2. c4 {[%clk 0:03:01.4]} 2...
e6 {[%clk 0:02:57.6]} 3. Nf3 {[%clk 0:03:01.9]} 3... b6 {[%clk 0:02:57.6]} 4. g3
{[%clk 0:03:01.3]} 4... Ba6 {[%clk 0:02:57.7]} 5. b3 {[%clk 0:03:00.5]} 5...
Bb4+ {[%clk 0:02:57.3]} 6. Bd2 {[%clk 0:02:59.9]} 6... Be7 {[%clk 0:02:57.5]} 7.
Bg2 {[%clk 0:02:59.8]} 7... c6 {[%clk 0:02:57.4]} 8. Bc3 {[%clk 0:02:57.6]} 8...
d5 {[%clk 0:02:57.2]} 9. Nbd2 {[%clk 0:02:56.6]} 9... Nbd7 {[%clk 0:02:56.3]}
10. O-O {[%clk 0:02:55.5]} 10... O-O {[%clk 0:02:53.8]} 11. Rc1 {[%clk
0:02:54.1]} 11... Rc8 {[%clk 0:02:52.5]} 12. Re1 {[%clk 0:02:53.9]} 12... Re8
{[%clk 0:02:44.9]} 13. e4 {[%clk 0:02:53.6]} 13... dxe4 {[%clk 0:02:45.1]} 14.
Nxe4 {[%clk 0:02:53.6]} 14... Nxe4 {[%clk 0:02:46]} 15. Rxe4 {[%clk 0:02:53.6]}
15... Nf6 {[%clk 0:02:43.8]} 16. Re1 {[%clk 0:02:50.9]} 16... c5 {[%clk
0:02:41.6]} 17. Ne5 {[%clk 0:02:49.4]} 17... cxd4 {[%clk 0:02:28.7]} 18. Qxd4
{[%clk 0:02:49]} 18... Qxd4 {[%clk 0:02:20.8]} 19. Bxd4 {[%clk 0:02:49.9]} 19...
Red8 {[%clk 0:02:18.5]} 20. Red1 {[%clk 0:02:47.1]} 20... Rd6 {[%clk 0:02:05.7]}
21. Be3 {[%clk 0:02:39.4]} 21... Kf8 {[%clk 0:02:02.1]} 22. Rxd6 {[%clk
0:02:23.4]} 22... Bxd6 {[%clk 0:02:03]} 23. Nc6 {[%clk 0:02:23]} 23... Rc7
{[%clk 0:01:54.6]} 24. b4 {[%clk 0:02:05.8]} 24... Bb7 {[%clk 0:01:49.4]} 25. b5
{[%clk 0:01:56.8]} 25... Bxc6 {[%clk 0:01:46.4]} 26. Bxc6 {[%clk 0:01:56]} 26...
Nd7 {[%clk 0:01:40.7]} 27. Bxd7 {[%clk 0:01:52.9]} 27... Rxd7 {[%clk 0:01:41.6]}
28. c5 {[%clk 0:01:49.2]} 28... bxc5 {[%clk 0:01:36.4]} 29. Bxc5 {[%clk
0:01:49.6]} 29... Ke7 {[%clk 0:01:35.9]} 30. a4 {[%clk 0:01:46.6]} 30... Rc7
{[%clk 0:01:32.5]} 31. Be3 {[%clk 0:01:41]} 31... Rxc1+ {[%clk 0:01:32.3]} 32.
Bxc1 {[%clk 0:01:41.7]} 32... Bc5 {[%clk 0:01:33.2]} 33. a5 {[%clk 0:01:29.1]}
33... Kd6 {[%clk 0:01:32.7]} 34. Kf1 {[%clk 0:00:36.1]} 34... Bd4 {[%clk
0:01:21.5]} 35. Ba3+ {[%clk 0:00:21.7]} 35... Kd5 {[%clk 0:01:21.6]} 36. Bf8
{[%clk 0:00:19]} 36... g6 {[%clk 0:01:16.5]} 37. Ke2 {[%clk 0:00:09.1]} 37...
Kc4 {[%clk 0:00:49.6]} 38. b6 {[%clk 0:00:09.2]} 38... axb6 {[%clk 0:00:50.5]}
39. axb6 {[%clk 0:00:07.4]} 39... Bxb6 {[%clk 0:00:51.4]} 40. g4 {[%clk
0:00:07.1]} 40... f5 {[%clk 0:00:50.4]} 41. f3 {[%clk 0:00:06]} 41... Kd5 {[%clk
0:00:49.4]} 42. h3 {[%clk 0:00:06.1]} 42... h5 {[%clk 0:00:47.8]} 43. gxh5
{[%clk 0:00:04.7]} 43... gxh5 {[%clk 0:00:47.6]} 44. Bh6 {[%clk 0:00:05.2]}
44... Bd4 {[%clk 0:00:33]} 45. Bd2 {[%clk 0:00:05.1]} 45... Bf6 {[%clk
0:00:32.3]} 46. Bf4 {[%clk 0:00:05]} 46... Be5 {[%clk 0:00:31.4]} 47. Bd2 {[%clk
0:00:05.3]} 47... Bd6 {[%clk 0:00:28.8]} 48. Be3 {[%clk 0:00:05.5]} 48... e5
{[%clk 0:00:29.3]} 49. Bd2 {[%clk 0:00:05.8]} 49... Ke6 {[%clk 0:00:28.6]} 50.
Be3 {[%clk 0:00:05.9]} 50... Be7 {[%clk 0:00:26.8]} 51. Bd2 {[%clk 0:00:06]}
51... Kf6 {[%clk 0:00:27.2]} 52. Be3 {[%clk 0:00:06.1]} 52... Kg6 {[%clk
0:00:27.7]} 53. Bd2 {[%clk 0:00:06]} 53... Bg5 {[%clk 0:00:28]} 54. Be1 {[%clk
0:00:06.1]} 54... Bf4 {[%clk 0:00:26.8]} 55. Bf2 {[%clk 0:00:06.4]} 55... Kg5
{[%clk 0:00:24.6]} 56. Be1 {[%clk 0:00:06.7]} 56... Bh2 {[%clk 0:00:18.3]} 57.
Kf1 {[%clk 0:00:03]} 57... h4 {[%clk 0:00:05.5]} 58. Kg2 {[%clk 0:00:03]} 58...
Bg3 {[%clk 0:00:04.9]} 59. Bxg3 {[%clk 0:00:01.8]} 59... hxg3 {[%clk 0:00:05.8]}
60. Kxg3 {[%clk 0:00:02.4]} 60... Kh5 {[%clk 0:00:04.6]} 61. Kg2 {[%clk
0:00:02.7]} 61... Kh4 {[%clk 0:00:04.8]} 62. Kh2 {[%clk 0:00:03.3]} 62... e4
{[%clk 0:00:03.7]} 63. fxe4 {[%clk 0:00:02.8]} 63... fxe4 {[%clk 0:00:04.6]} 64.
Kg2 {[%clk 0:00:03.2]} 64... e3 {[%clk 0:00:05.2]} 65. Kf3 {[%clk 0:00:03.5]}
65... e2 {[%clk 0:00:06.1]} 66. Kxe2 {[%clk 0:00:04]} 66... Kxh3 {[%clk
0:00:06.8]} 1/2-1/2

[Event "Late-Titled-Tuesday-Blitz-January-23-2024"]
[Site "Chess.com"]
[Date "2024.01.23"]
[Round "11"]
[White "GlavkonVVS"]
[Black "Yurovskykh_Oleksandr"]
[Result "0-1"]
[WhiteElo "2507"]
[BlackElo "2623"]
[TimeControl "180+1"]
[EndTime "16:03:51 PST"]
[Termination "Yurovskykh_Oleksandr won by resignation"]

1. Nf3 {[%clk 0:02:56.2]} 1... d5 {[%clk 0:03:00.5]} 2. g3 {[%clk 0:02:56.4]}
2... c6 {[%clk 0:03:00.6]} 3. Bg2 {[%clk 0:02:56.9]} 3... Bg4 {[%clk 0:03:01.2]}
4. O-O {[%clk 0:02:57.3]} 4... Nd7 {[%clk 0:03:01.7]} 5. d3 {[%clk 0:02:57.8]}
5... e6 {[%clk 0:03:01.6]} 6. Nbd2 {[%clk 0:02:57.8]} 6... Bd6 {[%clk
0:03:02.1]} 7. c4 {[%clk 0:02:58]} 7... Ngf6 {[%clk 0:03:02.1]} 8. a3 {[%clk
0:02:58]} 8... a5 {[%clk 0:03:01.9]} 9. Rb1 {[%clk 0:02:57.9]} 9... Qe7 {[%clk
0:03:00.9]} 10. h3 {[%clk 0:02:54.7]} 10... Bh5 {[%clk 0:03:00.9]} 11. g4 {[%clk
0:02:55]} 11... Bg6 {[%clk 0:03:01.1]} 12. Nh4 {[%clk 0:02:55.3]} 12... O-O
{[%clk 0:02:58.8]} 13. Nxg6 {[%clk 0:02:54.3]} 13... hxg6 {[%clk 0:02:58.6]} 14.
e3 {[%clk 0:02:54.7]} 14... Rab8 {[%clk 0:02:43.5]} 15. d4 {[%clk 0:02:33.7]}
15... b5 {[%clk 0:02:39.8]} 16. c5 {[%clk 0:02:30.8]} 16... Bc7 {[%clk 0:02:40]}
17. f4 {[%clk 0:02:28.6]} 17... a4 {[%clk 0:02:25.5]} 18. b4 {[%clk 0:02:19.6]}
18... axb3 {[%clk 0:02:22.7]} 19. Rxb3 {[%clk 0:02:17]} 19... Ra8 {[%clk
0:02:22.7]} 20. g5 {[%clk 0:02:16]} 20... Nh5 {[%clk 0:02:20.3]} 21. Qg4 {[%clk
0:02:12.8]} 21... Ra4 {[%clk 0:02:11.5]} 22. Nf3 {[%clk 0:02:11.9]} 22... Rfa8
{[%clk 0:02:09.9]} 23. h4 {[%clk 0:01:58.2]} 23... Kh7 {[%clk 0:01:53.1]} 24.
Bh3 {[%clk 0:01:57.6]} 24... Rc4 {[%clk 0:01:33]} 25. Qg2 {[%clk 0:01:56.5]}
25... f5 {[%clk 0:01:26.6]} 26. gxf6 {[%clk 0:01:54.8]} 26... gxf6 {[%clk
0:01:26.3]} 27. Nd2 {[%clk 0:01:31.5]} 27... Rca4 {[%clk 0:01:20]} 28. Bg4
{[%clk 0:01:17.2]} 28... f5 {[%clk 0:01:18.4]} 29. Bxh5 {[%clk 0:01:11.4]} 29...
gxh5 {[%clk 0:01:19.3]} 30. Nf3 {[%clk 0:01:11.7]} 30... Nf6 {[%clk 0:01:10.4]}
31. Ng5+ {[%clk 0:01:04.3]} 31... Kh6 {[%clk 0:01:05.5]} 32. Qf3 {[%clk
0:00:50.4]} 32... Ng4 {[%clk 0:01:05.6]} 33. Qe2 {[%clk 0:00:39.7]} 33... Bd8
{[%clk 0:01:04.7]} 34. e4 {[%clk 0:00:34.4]} 34... dxe4 {[%clk 0:01:01.5]} 35.
Nxe4 {[%clk 0:00:28.6]} 35... fxe4 {[%clk 0:00:24.5]} 36. f5+ {[%clk 0:00:28.5]}
36... Kg7 {[%clk 0:00:25]} 37. Qxe4 {[%clk 0:00:24.9]} 37... exf5 {[%clk
0:00:21.5]} 38. Qxf5 {[%clk 0:00:23]} 38... Qe8 {[%clk 0:00:17.6]} 39. Bg5
{[%clk 0:00:16.1]} 39... R8a7 {[%clk 0:00:14.8]} 40. Rbf3 {[%clk 0:00:14.2]}
40... Bxg5 {[%clk 0:00:12.4]} 41. Qxg5+ {[%clk 0:00:14.2]} 41... Qg6 {[%clk
0:00:12.9]} 42. Qf4 {[%clk 0:00:14.3]} 42... Ra8 {[%clk 0:00:09.5]} 43. Qc7+
{[%clk 0:00:13.4]} 43... Kg8 {[%clk 0:00:08.6]} 44. Rf5 {[%clk 0:00:12]} 44...
R4a7 {[%clk 0:00:04.8]} 45. Qf4 {[%clk 0:00:10.2]} 45... Rg7 {[%clk 0:00:04.2]}
46. Rg5 {[%clk 0:00:10.4]} 46... Qh6 {[%clk 0:00:04.1]} 47. Qe4 {[%clk
0:00:09.5]} 47... Rxg5 {[%clk 0:00:03.9]} 48. hxg5 {[%clk 0:00:10]} 48... Qxg5
{[%clk 0:00:03.8]} 49. Rf5 {[%clk 0:00:10.6]} 49... Qg7 {[%clk 0:00:02.9]} 50.
Qxc6 {[%clk 0:00:08.9]} 50... Ne3+ {[%clk 0:00:02.2]} 51. Kf2 {[%clk 0:00:09.5]}
51... Nxf5 {[%clk 0:00:02.6]} 52. Qxa8+ {[%clk 0:00:09.8]} 52... Qf8 {[%clk
0:00:03.1]} 53. Qd5+ {[%clk 0:00:09.2]} 53... Qf7 {[%clk 0:00:03]} 54. Qe5
{[%clk 0:00:09]} 54... Nxd4+ {[%clk 0:00:02.9]} 55. Ke3 {[%clk 0:00:08.9]} 55...
Ne6 {[%clk 0:00:02.1]} 56. c6 {[%clk 0:00:08.8]} 56... Kf8 {[%clk 0:00:02.7]}
57. Ke4 {[%clk 0:00:08.9]} 57... Ke8 {[%clk 0:00:03]} 58. Kd5 {[%clk 0:00:09.1]}
58... Kd8 {[%clk 0:00:02.4]} 59. Qxe6 {[%clk 0:00:08.4]} 59... Qxe6+ {[%clk
0:00:02.6]} 60. Kxe6 {[%clk 0:00:08.6]} 60... Kc7 {[%clk 0:00:03.2]} 61. Kd5
{[%clk 0:00:08.9]} 61... h4 {[%clk 0:00:03.4]} 62. Ke4 {[%clk 0:00:09.3]} 62...
Kxc6 {[%clk 0:00:03.3]} 63. Kf4 {[%clk 0:00:09.5]} 63... Kb6 {[%clk 0:00:03.9]}
64. Kg4 {[%clk 0:00:09.9]} 64... Ka5 {[%clk 0:00:04.6]} 65. Kxh4 {[%clk
0:00:10.4]} 65... Ka4 {[%clk 0:00:05.5]} 66. Kg3 {[%clk 0:00:11.1]} 66... Kxa3
{[%clk 0:00:06.4]} 67. Kf2 {[%clk 0:00:11.9]} 67... Ka2 {[%clk 0:00:07.3]} 68.
Ke2 {[%clk 0:00:12.5]} 68... b4 {[%clk 0:00:08.2]} 69. Kd2 {[%clk 0:00:13.3]}
69... b3 {[%clk 0:00:09.1]} 70. Kc1 {[%clk 0:00:14]} 70... b2+ {[%clk 0:00:10]}
71. Kc2 {[%clk 0:00:14.4]} 71... b1=Q+ {[%clk 0:00:10.9]} 0-1

[Event "Late-Titled-Tuesday-Blitz-January-23-2024"]
[Site "Chess.com"]
[Date "2024.01.23"]
[Round "11"]
[White "mfwagnerpeixoto"]
[Black "jjbolanos"]
[Result "1/2-1/2"]
[WhiteElo "2315"]
[BlackElo "2176"]
[TimeControl "180+1"]
[EndTime "16:03:53 PST"]
[Termination "Game drawn by repetition"]

1. d4 {[%clk 0:02:59.8]} 1... d5 {[%clk 0:02:59.5]} 2. c4 {[%clk 0:02:56.3]}
2... e6 {[%clk 0:03:00]} 3. Nf3 {[%clk 0:02:54.6]} 3... Nf6 {[%clk 0:03:00.2]}
4. g3 {[%clk 0:02:50.8]} 4... Be7 {[%clk 0:02:59.7]} 5. Bg2 {[%clk 0:02:50.3]}
5... O-O {[%clk 0:03:00.4]} 6. O-O {[%clk 0:02:50.2]} 6... dxc4 {[%clk
0:03:00.9]} 7. Qc2 {[%clk 0:02:45.2]} 7... a6 {[%clk 0:03:00.8]} 8. a4 {[%clk
0:02:44.8]} 8... Bd7 {[%clk 0:03:01.1]} 9. Qxc4 {[%clk 0:02:40.1]} 9... Bc6
{[%clk 0:03:00.7]} 10. Bg5 {[%clk 0:02:40.2]} 10... Bd5 {[%clk 0:03:00.7]} 11.
Qc1 {[%clk 0:02:39.7]} 11... h6 {[%clk 0:03:01]} 12. Bxf6 {[%clk 0:02:39.1]}
12... Bxf6 {[%clk 0:03:01.9]} 13. e3 {[%clk 0:02:38]} 13... c6 {[%clk
0:02:59.6]} 14. Nc3 {[%clk 0:02:38.1]} 14... Bxf3 {[%clk 0:02:59.1]} 15. Bxf3
{[%clk 0:02:37.9]} 15... a5 {[%clk 0:02:59.7]} 16. Ne4 {[%clk 0:02:36.3]} 16...
Na6 {[%clk 0:02:59]} 17. Nc5 {[%clk 0:02:26.6]} 17... Nxc5 {[%clk 0:02:51.4]}
18. Qxc5 {[%clk 0:02:27.5]} 18... Be7 {[%clk 0:02:49.4]} 19. Qc2 {[%clk
0:02:26.3]} 19... Rc8 {[%clk 0:02:45.9]} 20. Rfd1 {[%clk 0:02:18.7]} 20... Qd7
{[%clk 0:02:39.8]} 21. Qe4 {[%clk 0:02:12.7]} 21... b5 {[%clk 0:02:38.4]} 22.
axb5 {[%clk 0:02:06.9]} 22... cxb5 {[%clk 0:02:34.2]} 23. Rxa5 {[%clk
0:02:06.7]} 23... Bb4 {[%clk 0:02:33.9]} 24. Raa1 {[%clk 0:02:02.2]} 24... Rc4
{[%clk 0:02:33]} 25. Be2 {[%clk 0:01:54.9]} 25... Rc7 {[%clk 0:02:29.7]} 26. Qd3
{[%clk 0:01:51.6]} 26... Rfc8 {[%clk 0:02:24.6]} 27. Qxb5 {[%clk 0:01:48.9]}
27... Qxb5 {[%clk 0:02:25.5]} 28. Bxb5 {[%clk 0:01:49.1]} 28... Rc2 {[%clk
0:02:26.2]} 29. Bd3 {[%clk 0:01:43.2]} 29... Rxb2 {[%clk 0:02:25.3]} 30. Rab1
{[%clk 0:01:43.9]} 30... Ba3 {[%clk 0:02:19.5]} 31. Rxb2 {[%clk 0:01:43]} 31...
Bxb2 {[%clk 0:02:20.4]} 32. Kg2 {[%clk 0:01:41.3]} 32... Rc1 {[%clk 0:02:17.8]}
33. Rd2 {[%clk 0:01:41.4]} 33... Bc3 {[%clk 0:02:17.7]} 34. Ra2 {[%clk
0:01:41.4]} 34... g6 {[%clk 0:02:17]} 35. h4 {[%clk 0:01:38.7]} 35... Rd1 {[%clk
0:02:15]} 36. Be4 {[%clk 0:01:30.1]} 36... Be1 {[%clk 0:02:13.9]} 37. h5 {[%clk
0:01:22.1]} 37... g5 {[%clk 0:02:03.5]} 38. g4 {[%clk 0:01:09]} 38... Rd2 {[%clk
0:02:02.5]} 39. Rxd2 {[%clk 0:01:09.1]} 39... Bxd2 {[%clk 0:02:02.3]} 40. Kf3
{[%clk 0:01:09.3]} 40... Kf8 {[%clk 0:02:00.3]} 41. Bd3 {[%clk 0:01:05.7]} 41...
Ke7 {[%clk 0:02:00]} 42. Ke4 {[%clk 0:01:04.5]} 42... f6 {[%clk 0:02:00.1]} 43.
f4 {[%clk 0:01:02.8]} 43... Bc3 {[%clk 0:01:41.4]} 44. d5 {[%clk 0:00:47.9]}
44... exd5+ {[%clk 0:01:40.8]} 45. Kxd5 {[%clk 0:00:48.4]} 45... Bd2 {[%clk
0:01:41.5]} 46. Ke4 {[%clk 0:00:40.8]} 46... Kf8 {[%clk 0:01:35.2]} 47. fxg5
{[%clk 0:00:31.2]} 47... fxg5 {[%clk 0:01:33.2]} 48. Kf5 {[%clk 0:00:27.7]}
48... Kg7 {[%clk 0:01:33.2]} 49. e4 {[%clk 0:00:27.6]} 49... Bb4 {[%clk
0:01:29.1]} 50. e5 {[%clk 0:00:27.7]} 50... Bf8 {[%clk 0:01:18.3]} 51. Ke6
{[%clk 0:00:26]} 51... Bc5 {[%clk 0:01:18.1]} 52. Kd7 {[%clk 0:00:25.8]} 52...
Kf8 {[%clk 0:01:14.8]} 53. Bg6 {[%clk 0:00:23.2]} 53... Bd4 {[%clk 0:01:14.4]}
54. Ke6 {[%clk 0:00:20.2]} 54... Kg7 {[%clk 0:01:12.4]} 55. Kd5 {[%clk
0:00:19.9]} 55... Bb2 {[%clk 0:01:11.5]} 56. Be4 {[%clk 0:00:20]} 56... Kf7
{[%clk 0:01:10.6]} 57. Kd6 {[%clk 0:00:18.1]} 57... Ba3+ {[%clk 0:01:09.2]} 58.
Kd7 {[%clk 0:00:18.2]} 58... Bb4 {[%clk 0:01:06.8]} 59. Bd5+ {[%clk 0:00:15.2]}
59... Kg7 {[%clk 0:01:06.2]} 60. Ke6 {[%clk 0:00:14.1]} 60... Bc3 {[%clk
0:01:05.7]} 61. Kd6 {[%clk 0:00:12.1]} 61... Bb4+ {[%clk 0:01:05.3]} 62. Kd7
{[%clk 0:00:12.6]} 62... Ba3 {[%clk 0:01:03.7]} 63. Be4 {[%clk 0:00:10.9]} 63...
Kf7 {[%clk 0:01:00.9]} 64. Bg6+ {[%clk 0:00:08.9]} 64... Kf8 {[%clk 0:01:00.2]}
65. Ke6 {[%clk 0:00:09]} 65... Kg7 {[%clk 0:01:00.5]} 66. Kf5 {[%clk 0:00:08.6]}
66... Bb2 {[%clk 0:00:58.9]} 67. Be8 {[%clk 0:00:08.2]} 67... Bc3 {[%clk
0:00:57.6]} 68. Bc6 {[%clk 0:00:08.2]} 68... Bb2 {[%clk 0:00:57.2]} 69. Be4
{[%clk 0:00:08.7]} 69... Bc3 {[%clk 0:00:57.1]} 70. e6 {[%clk 0:00:09]} 70...
Bb4 {[%clk 0:00:56.7]} 71. Ke5 {[%clk 0:00:08.8]} 71... Be7 {[%clk 0:00:56.6]}
72. Kf5 {[%clk 0:00:08.4]} 72... Bd6 {[%clk 0:00:55.9]} 73. Bd5 {[%clk
0:00:08.2]} 73... Be7 {[%clk 0:00:55.9]} 74. Bb3 {[%clk 0:00:08.8]} 74... Bd6
{[%clk 0:00:55.8]} 75. Bc2 {[%clk 0:00:09]} 75... Be7 {[%clk 0:00:55.9]} 76. Bd3
{[%clk 0:00:09.3]} 76... Bd6 {[%clk 0:00:56]} 77. Be4 {[%clk 0:00:09.6]} 77...
Be7 {[%clk 0:00:56.1]} 78. Ke5 {[%clk 0:00:10.1]} 78... Kf8 {[%clk 0:00:55.7]}
79. Bf5 {[%clk 0:00:09.3]} 79... Kg7 {[%clk 0:00:55.6]} 80. Kd5 {[%clk
0:00:09.6]} 80... Kf6 {[%clk 0:00:55.7]} 81. Ke4 {[%clk 0:00:09.9]} 81... Bd6
{[%clk 0:00:55.7]} 82. Kd5 {[%clk 0:00:10.2]} 82... Be7 {[%clk 0:00:55.9]} 83.
Ke4 {[%clk 0:00:10.5]} 83... Bd8 {[%clk 0:00:55.8]} 84. Kd5 {[%clk 0:00:10.7]}
84... Bc7 {[%clk 0:00:55.2]} 85. Ke4 {[%clk 0:00:11]} 85... Bf4 {[%clk
0:00:54.8]} 86. Kd5 {[%clk 0:00:11.2]} 86... Bc7 {[%clk 0:00:54.3]} 87. Kc6
{[%clk 0:00:10.6]} 87... Bd8 {[%clk 0:00:54.4]} 88. Kd5 {[%clk 0:00:08.4]} 88...
Be7 {[%clk 0:00:55.3]} 1/2-1/2

[Event "Late-Titled-Tuesday-Blitz-January-23-2024"]
[Site "Chess.com"]
[Date "2024.01.23"]
[Round "11"]
[White "ErikRonka"]
[Black "ChessSwole"]
[Result "1-0"]
[WhiteElo "2495"]
[BlackElo "2597"]
[TimeControl "180+1"]
[EndTime "16:03:57 PST"]
[Termination "ErikRonka won by checkmate"]

1. e4 {[%clk 0:03:00.9]} 1... e5 {[%clk 0:02:59.4]} 2. Nf3 {[%clk 0:02:59.9]}
2... Nf6 {[%clk 0:02:59.8]} 3. Nxe5 {[%clk 0:02:56.1]} 3... d6 {[%clk
0:02:59.6]} 4. Nf3 {[%clk 0:02:55.9]} 4... Nxe4 {[%clk 0:02:59.9]} 5. d3 {[%clk
0:02:56.3]} 5... Nf6 {[%clk 0:02:59.8]} 6. d4 {[%clk 0:02:57.1]} 6... Be7 {[%clk
0:02:59.6]} 7. Bd3 {[%clk 0:02:57.5]} 7... O-O {[%clk 0:02:59.7]} 8. O-O {[%clk
0:02:58.2]} 8... c6 {[%clk 0:02:58.1]} 9. h3 {[%clk 0:02:53.5]} 9... a5 {[%clk
0:02:57.4]} 10. c4 {[%clk 0:02:53.2]} 10... Na6 {[%clk 0:02:57.4]} 11. Nc3
{[%clk 0:02:52.7]} 11... Nc7 {[%clk 0:02:51]} 12. Re1 {[%clk 0:02:51.3]} 12...
h6 {[%clk 0:02:42]} 13. Bc2 {[%clk 0:02:48.3]} 13... Be6 {[%clk 0:02:40.2]} 14.
Qd3 {[%clk 0:02:47]} 14... Re8 {[%clk 0:02:30]} 15. Ne4 {[%clk 0:02:35.8]} 15...
Nxe4 {[%clk 0:02:14]} 16. Qxe4 {[%clk 0:02:30]} 16... f5 {[%clk 0:02:13.6]} 17.
Qd3 {[%clk 0:02:23.2]} 17... Bf6 {[%clk 0:02:11.9]} 18. Bd2 {[%clk 0:02:07.4]}
18... Qd7 {[%clk 0:02:05.5]} 19. Re2 {[%clk 0:01:59.2]} 19... a4 {[%clk
0:01:50.7]} 20. Rae1 {[%clk 0:01:58.5]} 20... b5 {[%clk 0:01:50.1]} 21. b3
{[%clk 0:01:58.4]} 21... axb3 {[%clk 0:01:49.7]} 22. axb3 {[%clk 0:01:59.3]}
22... Ra2 {[%clk 0:01:34.3]} 23. Bb1 {[%clk 0:01:45.8]} 23... Ra3 {[%clk
0:01:30.9]} 24. d5 {[%clk 0:01:33]} 24... bxc4 {[%clk 0:01:16.5]} 25. Qxc4
{[%clk 0:01:04.2]} 25... Bxd5 {[%clk 0:01:15.6]} 26. Rxe8+ {[%clk 0:01:01.2]}
26... Nxe8 {[%clk 0:01:16.5]} 27. Qf4 {[%clk 0:01:01.4]} 27... Be6 {[%clk
0:01:03]} 28. Bc2 {[%clk 0:00:40]} 28... Ra2 {[%clk 0:00:59.3]} 29. Bd3 {[%clk
0:00:37]} 29... c5 {[%clk 0:00:52.5]} 30. Bb5 {[%clk 0:00:18]} 30... Qxb5 {[%clk
0:00:40]} 31. Rxe6 {[%clk 0:00:18.4]} 31... Qd7 {[%clk 0:00:23.5]} 32. Qxf5
{[%clk 0:00:17.8]} 32... Qf7 {[%clk 0:00:18.9]} 33. Qe4 {[%clk 0:00:16.4]} 33...
Kf8 {[%clk 0:00:15.8]} 34. Qe1 {[%clk 0:00:14.6]} 34... Be7 {[%clk 0:00:13.8]}
35. Re2 {[%clk 0:00:13.5]} 35... Bf6 {[%clk 0:00:14]} 36. Bf4 {[%clk 0:00:12.7]}
36... Ra1 {[%clk 0:00:13.5]} 37. Bc1 {[%clk 0:00:12.3]} 37... Nc7 {[%clk
0:00:12.5]} 38. Kh2 {[%clk 0:00:11.2]} 38... Qxb3 {[%clk 0:00:11.7]} 39. Qd2
{[%clk 0:00:11.3]} 39... Qd5 {[%clk 0:00:11.1]} 40. Qe3 {[%clk 0:00:08.5]} 40...
Kg8 {[%clk 0:00:10.8]} 41. Bb2 {[%clk 0:00:08.3]} 41... Bxb2 {[%clk 0:00:10.2]}
42. Rxb2 {[%clk 0:00:08.7]} 42... Qe6 {[%clk 0:00:08.4]} 43. Qd3 {[%clk
0:00:07.8]} 43... Nd5 {[%clk 0:00:07.6]} 44. Re2 {[%clk 0:00:07.5]} 44... Qf7
{[%clk 0:00:06.6]} 45. Qe4 {[%clk 0:00:06.9]} 45... Ra8 {[%clk 0:00:06]} 46. g3
{[%clk 0:00:05.3]} 46... Rf8 {[%clk 0:00:05.5]} 47. Kg2 {[%clk 0:00:05.4]} 47...
Nf6 {[%clk 0:00:06.4]} 48. Qf5 {[%clk 0:00:05.3]} 48... Qd7 {[%clk 0:00:05.9]}
49. Qf4 {[%clk 0:00:04.8]} 49... d5 {[%clk 0:00:05.9]} 50. Ne5 {[%clk
0:00:04.6]} 50... Qc7 {[%clk 0:00:06.2]} 51. Ng6 {[%clk 0:00:04.5]} 51... Qxf4
{[%clk 0:00:07.1]} 52. gxf4 {[%clk 0:00:05.1]} 52... Rd8 {[%clk 0:00:07.2]} 53.
f5 {[%clk 0:00:04.2]} 53... d4 {[%clk 0:00:07.1]} 54. Kf3 {[%clk 0:00:04.5]}
54... d3 {[%clk 0:00:07]} 55. Rd2 {[%clk 0:00:04.6]} 55... c4 {[%clk 0:00:07.7]}
56. Ne5 {[%clk 0:00:05.1]} 56... Kf8 {[%clk 0:00:05.9]} 57. Nxc4 {[%clk
0:00:05.2]} 57... Rd4 {[%clk 0:00:05.9]} 58. Ne5 {[%clk 0:00:05.2]} 58... Rh4
{[%clk 0:00:04.8]} 59. Ng6+ {[%clk 0:00:05.2]} 59... Kf7 {[%clk 0:00:03.9]} 60.
Nxh4 {[%clk 0:00:06.1]} 60... Nd7 {[%clk 0:00:04.5]} 61. Rxd3 {[%clk 0:00:05.9]}
61... Ne5+ {[%clk 0:00:05]} 62. Ke4 {[%clk 0:00:06.5]} 62... Nc4 {[%clk
0:00:05.5]} 63. Rd7+ {[%clk 0:00:05.9]} 63... Kf6 {[%clk 0:00:06.1]} 64. Nf3
{[%clk 0:00:05.5]} 64... h5 {[%clk 0:00:04.6]} 65. Ra7 {[%clk 0:00:04.7]} 65...
h4 {[%clk 0:00:03.9]} 66. Kf4 {[%clk 0:00:05.1]} 66... Nb2 {[%clk 0:00:03.7]}
67. Ra6+ {[%clk 0:00:05.4]} 67... Kf7 {[%clk 0:00:04.4]} 68. Ng5+ {[%clk
0:00:05.9]} 68... Ke7 {[%clk 0:00:04.6]} 69. Ra7+ {[%clk 0:00:06.4]} 69... Kf6
{[%clk 0:00:04.8]} 70. Rf7# {[%clk 0:00:06.4]} 1-0